Cogmind - Beta 12 @@@ ROGUE MODE // 2023.04.27 @ 19:14:54 Player: Mr Goldstein Result: Destroyed by Cetus Guard with Advanced Variable Charge Gun Performance ------------- Evolutions (5) 2500 Regions Visited (13) 2600 Robots Destroyed (3) 15 Value Destroyed (81) 81 Prototype IDs (15) 300 Alien Tech Used (0) 0 Bonus (2098) 2098 TOTAL SCORE: 7594 Bonus ------- Pacifist 834 Follower Combat Kills 464 Entered DSFs 500 Met Data Miner 300 Cogmind --------- Core Integrity 0/1000 Matter 300/300 Energy 98/100 System Corruption 3% Temperature Cool (9) Movement Core (50) Location -5/Cetus Parts ------- > --- POWER (1) -------- (None) > --- PROPULSION (7) --- (None) > --- UTILITY (7) ------ Signal Interpreter Signal Interpreter Improved Signal Interpreter Advanced Hacking Suite > --- WEAPON (2) ------- (None) > --- INVENTORY (5) ---- Fusion Compressor Neutrino Core Peak State ------------ > --- POWER ------------ Light Nuclear Core > --- PROPULSION ------- VTOL Module VTOL Module Cesium-ion Thruster Cesium-ion Thruster Cesium-ion Thruster Xenon Bombardment Thruster > --- UTILITY ---------- Signal Interpreter Advanced Terrain Scan Processor Advanced Terrain Scan Processor Advanced Terrain Scan Processor > --- WEAPON ----------- Mace Katana > --- INVENTORY -------- Improved Ion Engine Visual Processing Unit Signal Interpreter Improved Signal Interpreter Improved Datajack [Rating: 39] Favorites ----------- Power Light Nuclear Core Engine Improved Ion Engine Power Core Light Nuclear Core Propulsion Cesium-ion Thruster Treads Light Treads Flight Unit Cesium-ion Thruster Utility Signal Interpreter Device Advanced Sensor Array Processor Signal Interpreter Hackware Advanced Hacking Suite Weapon Katana Impact Weapon Mace Slashing Weapon Katana Special Melee Weapon Improved Datajack Build | -11 -10 -9 -8 -7 -7 -7 -7 -6 -6 -6 -5 -5 -5 ------- Run | Jun Mat Mat Mat Fac Low Low Dat Pro Fac DSF Fac Ext Cet Slots Evolved 10 | . . 2 2 2 . . . . 2 . 2 . . Power . | . . . . . . . . . . . . . . Propulsion 5 | . . 1 2 1 . . . . 1 . . . . Utility 5 | . . 1 . 1 . . . . 1 . 2 . . Weapon . | . . . . . . . . . . . . . . Parts Attached 47 | 2 . . 10 12 1 . 3 1 3 6 8 1 . Power 3 | . . . . 2 . . . . 1 . . . . Engine 1 | . . . . . . . . . 1 . . . . Core 2 | . . . . 2 . . . . . . . . . Reactor . | . . . . . . . . . . . . . . Propulsion 17 | 2 . . 7 5 1 . . 1 . . 1 . . Treads 4 | 2 . . 2 . . . . . . . . . . Leg . | . . . . . . . . . . . . . . Wheel . | . . . . . . . . . . . . . . Hover . | . . . . . . . . . . . . . . Flight 13 | . . . 5 5 1 . . 1 . . 1 . . Utility 20 | . . . 3 3 . . . . 1 6 7 . . Device 2 | . . . . . . . . . 1 . 1 . . Storage . | . . . . . . . . . . . . . . Processor 8 | . . . 3 3 . . . . . . 2 . . Hackware 10 | . . . . . . . . . . 6 4 . . Protection . | . . . . . . . . . . . . . . Artifact . | . . . . . . . . . . . . . . Weapon 7 | . . . . 2 . . 3 . 1 . . 1 . Energy Gun . | . . . . . . . . . . . . . . Energy Cannon . | . . . . . . . . . . . . . . Ballistic Gun . | . . . . . . . . . . . . . . Ballistic Cannon . | . . . . . . . . . . . . . . Launcher . | . . . . . . . . . . . . . . Special Weapon . | . . . . . . . . . . . . . . Impact Weapon 3 | . . . . 1 . . 1 . 1 . . . . Slashing Weapon 2 | . . . . 1 . . 1 . . . . . . Piercing Weapon . | . . . . . . . . . . . . . . Special Melee Weapon 2 | . . . . . . . 1 . . . . 1 . Unidentified Prototypes . | . . . . . . . . . . . . . . Parts Lost 24 | . . . 4 . . 1 . 4 . 8 3 3 1 Power 1 | . . . . . . . . 1 . . . . . Propulsion 10 | . . . 3 . . 1 . 3 . 2 . 1 . Utility 12 | . . . 1 . . . . . . 6 3 1 1 Weapon 1 | . . . . . . . . . . . . 1 . Highest Loss Streak 8 | . . . 4 . . 1 . 4 . 8 1 2 1 To Critical Strikes . | . . . . . . . . . . . . . . Average Slot Usage (%) 48 | . 28 22 39 67 92 91 80 74 55 34 33 35 25 Core 1 | . . . . 4 7 7 7 4 . . . . . Treads 3 | . 28 22 18 . . . . . . . . . . Flight 10 | . . . 2 19 38 37 30 23 13 3 1 3 . Device 1 | . . . . . . . . . 2 . 4 1 . Processor 17 | . . . 18 28 30 30 30 30 26 12 8 17 17 Hackware 6 | . . . . . . . . . . 11 16 11 7 Impact Weapon 2 | . . . . 5 7 7 3 7 6 3 . . . Slashing Weapon 2 | . . . . 6 7 7 7 7 6 1 . . . Naked Turns . | . . . . . . . . . . . . . . Heaviest Build 9 | . . . . 9 9 9 9 9 7 7 1 1 . Greatest Support 24 | 20 3 3 20 24 24 24 19 19 10 10 6 6 3 Greatest Overweight (x) 1 | . . . . 1 . . . . . . . . . Average Overweight (x) . | . . . . . . . . . . . . . . Largest Inventory Capacity 5 | 5 5 5 5 5 5 5 5 5 5 5 5 5 5 Average Capacity 5 | 5 5 5 5 5 5 5 5 5 5 5 5 5 5 Most Carried 5 | . . 1 5 5 5 5 5 5 5 5 4 3 2 Average Carried 2 | . . . 3 4 5 5 4 4 4 4 1 2 2 Final Capacity 5 | 5 5 5 5 5 5 5 5 5 5 5 5 5 5 Final Carried 5 | . . 1 5 5 5 5 5 4 4 5 2 2 2 Class Distribution -------------------- 44% | Hacker-Mutant 27% | Mutant 26% | Sprinter Dominant Class ---------------- Mutant | -10/Materials Mutant | -9/Materials Mutant | -8/Materials Sprinter | -7/Factory Sprinter | -7/Lower Caves Sprinter | -7/Lower Caves Sprinter | -7/Data Miner Sprinter | -6/Proximity Caves Sprinter | -6/Factory Sprinter | -6/DSF Hacker-Mutant | -5/Factory Hacker-Mutant | -5/Extension Mutant | -5/Cetus Resources | -11 -10 -9 -8 -7 -7 -7 -7 -6 -6 -6 -5 -5 -5 ----------- Run | Jun Mat Mat Mat Fac Low Low Dat Pro Fac DSF Fac Ext Cet Matter Collected 572 | 220 . . . 44 . 157 . . . 8 26 117 . Remotely . | . . . . . . . . . . . . . . Salvage Created 250 | . . . . 65 . 185 . . . . . . . Parts 4 | . . . . 3 . 1 . . . . . . . Haulers Intercepted . | . . . . . . . . . . . . . . Recyclers Shooed . | . . . . . . . . . . . . . . Parts Field Recycled . | . . . . . . . . . . . . . . Retrieved Matter . | . . . . . . . . . . . . . . Parts Self-Destructed 1 | . . . . . . 1 . . . . . . . Prevented . | . . . . . . . . . . . . . . Kills | -11 -10 -9 -8 -7 -7 -7 -7 -6 -6 -6 -5 -5 -5 ------- Run | Jun Mat Mat Mat Fac Low Low Dat Pro Fac DSF Fac Ext Cet Combat Hostiles Destroyed 3 | . . . . 3 . . . . . . . . . Melee 3 | . . . . 3 . . . . . . . . . Classes Destroyed 1 | . . . . 1 . . . . . . . . . Swarmer 3 | . . . . 3 . . . . . . . . . Best Kill Streak 3 | . . . . 3 . . . . . . . . . Combat Bots Only 3 | . . . . 3 . . . . . . . . . Max Kills in Single Turn 1 | . . . . 1 . . . . . . . . . Gunslinging . | . . . . . . . . . . . . . . Exploded . | . . . . . . . . . . . . . . Melee 1 | . . . . 1 . . . . . . . . . Uniques/NPCs Destroyed . | . . . . . . . . . . . . . . Combat | -11 -10 -9 -8 -7 -7 -7 -7 -6 -6 -6 -5 -5 -5 -------- Run | Jun Mat Mat Mat Fac Low Low Dat Pro Fac DSF Fac Ext Cet Damage Taken 2840 | . 58 99 479 147 . 86 . 306 . 486 383 506 290 Core 1975 | . 35 42 169 129 . 41 . 188 . 355 329 424 263 Absorbed by Shields 32 | . . . . . . . . . . . . 23 9 Core Remaining (%) 75 | 100 86 89 69 . . . . 48 . 58 . . . Volleys Fired . | . . . . . . . . . . . . . . Largest . | . . . . . . . . . . . . . . Hottest . | . . . . . . . . . . . . . . Shots Fired . | . . . . . . . . . . . . . . Gun . | . . . . . . . . . . . . . . Cannon . | . . . . . . . . . . . . . . Launcher . | . . . . . . . . . . . . . . Special . | . . . . . . . . . . . . . . Kinetic . | . . . . . . . . . . . . . . Thermal . | . . . . . . . . . . . . . . Explosive . | . . . . . . . . . . . . . . Electromagnetic . | . . . . . . . . . . . . . . Robot Hit Streak . | . . . . . . . . . . . . . . Robot Miss Streak . | . . . . . . . . . . . . . . Penetration Max . | . . . . . . . . . . . . . . Secondary Targets . | . . . . . . . . . . . . . . Shots Hit Robots 25 | . . . . 6 . 4 1 2 1 . . 11 . Core Hits 6 | . . . 2 3 . 1 . . . . . . . Critical Kills . | . . . . . . . . . . . . . . Critical Parts Destroyed . | . . . . . . . . . . . . . . Critical Strikes . | . . . . . . . . . . . . . . Melee Attacks 36 | . . . . 10 . 6 1 6 2 . . 11 . Impact 9 | . . . . 6 . 2 . . 1 . . . . Slashing 15 | . . . . 4 . 4 . 6 1 . . . . Piercing . | . . . . . . . . . . . . . . Sneak Attacks 12 | . . . . . . . 1 . . . . 11 . Combat Hostiles . | . . . . . . . . . . . . . . Follow-up Attacks 3 | . . . . 1 . 1 . . 1 . . . . Damage Inflicted 532 | . 33 . 29 170 . 187 . 79 33 . . . 1 Guns . | . . . . . . . . . . . . . . Cannons . | . . . . . . . . . . . . . . Explosions . | . . . . . . . . . . . . . . Melee 469 | . . . . 170 . 187 . 79 33 . . . . Ramming 63 | . 33 . 29 . . . . . . . . . 1 Kinetic . | . . . . . . . . . . . . . . Thermal . | . . . . . . . . . . . . . . Explosive . | . . . . . . . . . . . . . . Electromagnetic . | . . . . . . . . . . . . . . Impact 180 | . . . . 109 . 38 . . 33 . . . . Slashing 289 | . . . . 61 . 149 . 79 . . . . . Piercing . | . . . . . . . . . . . . . . Highest Corruption 3 | . . . . . . 1 1 1 . 2 3 3 3 Average Corruption 2 | . . . . . . 1 1 1 . 2 3 3 3 Corruption Purged . | . . . . . . . . . . . . . . Corruption Blocked . | . . . . . . . . . . . . . . Effects 8 | . . . . . . . . . . . 5 2 1 Message Errors 1 | . . . . . . . . . . . . . 1 Matter Fused 1 | . . . . . . . . . . . 1 . . Heat Flow Errors 1 | . . . . . . . . . . . 1 . . Energy Discharges 1 | . . . . . . . . . . . . 1 . Data Loss (minor) 3 | . . . . . . . . . . . 2 1 . Data Loss (major) 1 | . . . . . . . . . . . 1 . . Overload Shots . | . . . . . . . . . . . . . . Overflow Damage 78 | . . . . 26 . 38 . 14 . . . . . Projectiles . | . . . . . . . . . . . . . . Explosions . | . . . . . . . . . . . . . . Melee 78 | . . . . 26 . 38 . 14 . . . . . Knockbacks 1 | . . . . . . . . . 1 . . . . Impact 1 | . . . . . . . . . 1 . . . . Kinetic . | . . . . . . . . . . . . . . Secondary . | . . . . . . . . . . . . . . Self-Inflicted Damage 30 | . 16 . 14 . . . . . . . . . . Shots . | . . . . . . . . . . . . . . Rammed 7 | . 3 . 3 . . . . . . . . . 1 Targets Rammed 7 | . 3 . 3 . . . . . . . . . 1 Kicked . | . . . . . . . . . . . . . . Crushed . | . . . . . . . . . . . . . . Highest Temperature 199 | . . . 25 4 4 4 . 28 . . 199 . . Average Temperature 9 | . . . 18 3 2 2 . 13 . . 119 . . Received Heat Transfer 716 | . 12 27 297 . . . . 124 . . 99 99 58 Siege Activations . | . . . . . . . . . . . . . . Robots Corrupted . | . . . . . . . . . . . . . . Combat Hostiles . | . . . . . . . . . . . . . . Parts Fried . | . . . . . . . . . . . . . . Impact Corruptions 1 | . . . . . . 1 . . . . . . . Robots Melted . | . . . . . . . . . . . . . . Combat Hostiles . | . . . . . . . . . . . . . . Parts Melted . | . . . . . . . . . . . . . . Heat Transferred . | . . . . . . . . . . . . . . Parts Sabotaged . | . . . . . . . . . . . . . . Parts Stolen . | . . . . . . . . . . . . . . Parts Stripped . | . . . . . . . . . . . . . . Power Chain Reactions . | . . . . . . . . . . . . . . Missiles Intercepted . | . . . . . . . . . . . . . . Alert | -11 -10 -9 -8 -7 -7 -7 -7 -6 -6 -6 -5 -5 -5 ------- Run | Jun Mat Mat Mat Fac Low Low Dat Pro Fac DSF Fac Ext Cet Peak Influence 505 | . 15 147 106 144 . . . . 332 232 400 505 282 Initial 302 | . . 5 61 29 . . . . 302 232 87 196 282 Average 184 | . 4 69 85 95 . . . . 315 205 190 317 268 Maximum Alert Level 2 | . . . . . . . . . 1 1 2 2 1 Low Security (%) 58 | 100 100 100 100 100 . . . . . 33 55 23 . Level 1 33 | . . . . . . . . . 100 66 43 39 100 Level 2 7 | . . . . . . . . . . . . 36 . Level 3 . | . . . . . . . . . . . . . . Level 4 . | . . . . . . . . . . . . . . Level 5 . | . . . . . . . . . . . . . . High Security . | . . . . . . . . . . . . . . Max Security . | . . . . . . . . . . . . . . Squads Dispatched 15 | . 1 1 3 . . . . . . 1 7 1 1 Investigation 12 | . 1 1 3 . . . . . . . 5 1 1 Extermination . | . . . . . . . . . . . . . . Reinforcement 3 | . . . . . . . . . . 1 2 . . Assault . | . . . . . . . . . . . . . . Garrison . | . . . . . . . . . . . . . . Intercept . | . . . . . . . . . . . . . . Searches Triggered . | . . . . . . . . . . . . . . Data Miner Redirects 4 | . . . . . . . . . . . 2 1 1 Construction Impeded . | . . . . . . . . . . . . . . Haulers Reinforced . | . . . . . . . . . . . . . . Active Scanning Responses . | . . . . . . . . . . . . . . Cargo Convoy Interrupts . | . . . . . . . . . . . . . . Stealth | -11 -10 -9 -8 -7 -7 -7 -7 -6 -6 -6 -5 -5 -5 --------- Run | Jun Mat Mat Mat Fac Low Low Dat Pro Fac DSF Fac Ext Cet Distress Signals 5 | . . . 1 . . . . . . . 1 2 1 Communications Jammed . | . . . . . . . . . . . . . . Distress Signals . | . . . . . . . . . . . . . . Times Spotted 102 | . 4 4 11 5 2 12 . 9 1 5 25 19 5 Peak Tracking Total 10 | . 7 8 10 3 2 9 . 5 1 4 9 9 5 Tactical Retreats 24 | . . 4 . 1 1 5 . 2 . 1 6 3 1 Traps | -11 -10 -9 -8 -7 -7 -7 -7 -6 -6 -6 -5 -5 -5 ------- Run | Jun Mat Mat Mat Fac Low Low Dat Pro Fac DSF Fac Ext Cet Traps Triggered 6 | . 1 1 1 . . . . . . 1 1 1 . Indirectly . | . . . . . . . . . . . . . . Trap Hack Attempts . | . . . . . . . . . . . . . . Triggered . | . . . . . . . . . . . . . . Disarmed . | . . . . . . . . . . . . . . Reprogrammed . | . . . . . . . . . . . . . . Reused . | . . . . . . . . . . . . . . Traps Extracted . | . . . . . . . . . . . . . . Installed . | . . . . . . . . . . . . . . Triggered 1 | . . . . . 1 . . . . . . . . Machines | -11 -10 -9 -8 -7 -7 -7 -7 -6 -6 -6 -5 -5 -5 ---------- Run | Jun Mat Mat Mat Fac Low Low Dat Pro Fac DSF Fac Ext Cet Machines Disabled . | . . . . . . . . . . . . . . Max in Single Turn . | . . . . . . . . . . . . . . Garrison Access 1 | . . . . . . . . . . . 1 . . Machines Repaired . | . . . . . . . . . . . . . . Machines Sabotaged . | . . . . . . . . . . . . . . Overloaded Fab Kills . | . . . . . . . . . . . . . . Hacking | -11 -10 -9 -8 -7 -7 -7 -7 -6 -6 -6 -5 -5 -5 --------- Run | Jun Mat Mat Mat Fac Low Low Dat Pro Fac DSF Fac Ext Cet Machines Accessed 24 | . 1 1 2 2 . . 4 1 1 . 7 3 2 Terminals 16 | . 1 1 2 1 . . . 1 1 . 4 3 2 Fabricators 3 | . . . . 1 . . . . . . 2 . . Repair Stations . | . . . . . . . . . . . . . . Recycling Units . | . . . . . . . . . . . . . . Scanalyzers . | . . . . . . . . . . . . . . Garrison Access 1 | . . . . . . . . . . . 1 . . Total Hacks 72 | . 2 1 6 3 . . 29 2 1 . 15 9 4 Successful 52 | . . 1 . 1 . . 29 2 1 . 9 8 1 Failed 20 | . 2 . 6 2 . . . . . . 6 1 3 Catastrophic 5 | . 1 . 3 1 . . . . . . . . . Database Lockouts . | . . . . . . . . . . . . . . Manual 10 | . 2 . 4 . . . . . . . 1 2 1 Terminals 37 | . 2 1 6 2 . . . 2 1 . 10 9 4 Fabricators 5 | . . . . 1 . . . . . . 4 . . Repair Stations . | . . . . . . . . . . . . . . Recycling Units . | . . . . . . . . . . . . . . Scanalyzers . | . . . . . . . . . . . . . . Garrison Access 1 | . . . . . . . . . . . 1 . . Terminal Hacks 47 | . . 1 . 1 . . 29 2 1 . 4 8 1 Record 19 | . . . . . . . 11 2 . . . 5 1 Part Schematic 9 | . . . . . . . 9 . . . . . . Robot Schematic 6 | . . . . . . . 6 . . . . . . Robot Analysis 1 | . . . . . . . . . . . 1 . . Prototype ID Bank 3 | . . . . . . . 3 . . . . . . Open DSF 1 | . . . . . . . . . 1 . . . . Level Access Points 1 | . . . . . . . . . . . 1 . . Branch Access Points 3 | . . 1 . . . . . . . . 1 1 . Registered Components 1 | . . . . . . . . . . . . 1 . Zone Layout 3 | . . . . 1 . . . . . . 1 1 . Fabricator Hacks 4 | . . . . . . . . . . . 4 . . Load Schematic 2 | . . . . . . . . . . . 2 . . Build 2 | . . . . . . . . . . . 2 . . Repair Station Hacks . | . . . . . . . . . . . . . . Recycling Unit Hacks . | . . . . . . . . . . . . . . Scanalyzer . | . . . . . . . . . . . . . . Garrison Access Hacks 1 | . . . . . . . . . . . 1 . . Seal Access 1 | . . . . . . . . . . . 1 . . Unauthorized Hacks . | . . . . . . . . . . . . . . Terminals . | . . . . . . . . . . . . . . Fabricators . | . . . . . . . . . . . . . . Repair Stations . | . . . . . . . . . . . . . . Recycling Units . | . . . . . . . . . . . . . . Scanalyzers . | . . . . . . . . . . . . . . Garrison Access . | . . . . . . . . . . . . . . Data Cores Recovered . | . . . . . . . . . . . . . . Used . | . . . . . . . . . . . . . . Hacking Detections 14 | . 1 . 2 2 . . . . 1 . 5 2 1 Full Trace Events 10 | . 1 . 2 . . . . . . . 5 1 1 Feedback Events 1 | . . . . . . . . . . . 1 . . Hackware Fried 1 | . . . . . . . . . . . 1 . . Feedback Blocked . | . . . . . . . . . . . . . . Robot Schematics Acquired 6 | . . . . . . . 6 . . . . . . Robots Built . | . . . . . . . . . . . . . . Authchips . | . . . . . . . . . . . . . . Time . | . . . . . . . . . . . . . . Total Robot Build Rating . | . . . . . . . . . . . . . . Part Schematics Acquired 9 | . . . . . . . 9 . . . . . . Parts Built 1 | . . . . . . . . . . . 1 . . Authchips . | . . . . . . . . . . . . . . Time 152 | . . . . . . . . . . . 152 . . Total Part Build Rating 5 | . . . . . . . . . . . 5 . . Parts Repaired . | . . . . . . . . . . . . . . Time . | . . . . . . . . . . . . . . Parts Recycled . | . . . . . . . . . . . . . . Recycled Matter . | . . . . . . . . . . . . . . Retrieved Matter . | . . . . . . . . . . . . . . Retrieved Components . | . . . . . . . . . . . . . . Parts Scanalyzed . | . . . . . . . . . . . . . . Part Schematics Acquired . | . . . . . . . . . . . . . . Parts Damaged . | . . . . . . . . . . . . . . Bothacking | -11 -10 -9 -8 -7 -7 -7 -7 -6 -6 -6 -5 -5 -5 ------------ Run | Jun Mat Mat Mat Fac Low Low Dat Pro Fac DSF Fac Ext Cet Used RIF Installer . | . . . . . . . . . . . . . . Robots Hacked 1 | . . . . . . . 1 . . . . . . Non-combat . | . . . . . . . . . . . . . . Combat 1 | . . . . . . . 1 . . . . . . Robot Hacks Applied 1 | . . . . . . . 1 . . . . . . parse_system 1 | . . . . . . . 1 . . . . . . Relay Couplers Released . | . . . . . . . . . . . . . . Fabnet Peak Effective % . | . . . . . . . . . . . . . . Robots Rewired 8 | . . . . . . . . . . . . 8 . Allies Hacked 2 | . . . . . . . . . . . . 2 . Hacks Repelled . | . . . . . . . . . . . . . . Allies | -11 -10 -9 -8 -7 -7 -7 -7 -6 -6 -6 -5 -5 -5 -------- Run | Jun Mat Mat Mat Fac Low Low Dat Pro Fac DSF Fac Ext Cet Total Allies 13 | . . . . . . . . 1 . . . 12 . Largest Group 7 | . . . . . . . . 1 . . . 7 1 Highest-Rated Group 329 | . . . . . . . . 96 . . . 329 144 Highest-Rated Ally 159 | . . . . . . . . 96 . . . 159 144 Total Orders . | . . . . . . . . . . . . . . Ally Attacks 77 | . . . . . . . . 4 . . . 71 2 Total Damage 1907 | . . . . . . . . . . . . 1844 63 Kills 13 | . . . . . . . . . . . . 13 . Allies Corrupted . | . . . . . . . . . . . . . . Allies Melted . | . . . . . . . . . . . . . . Intel | -11 -10 -9 -8 -7 -7 -7 -7 -6 -6 -6 -5 -5 -5 ------- Run | Jun Mat Mat Mat Fac Low Low Dat Pro Fac DSF Fac Ext Cet Robot Analysis Total 1 | . . . . . . . . . . . 1 . . Derelict Logs Recovered . | . . . . . . . . . . . . . . Drone Launches . | . . . . . . . . . . . . . . Drone Recoveries . | . . . . . . . . . . . . . . Exploration | -11 -10 -9 -8 -7 -7 -7 -7 -6 -6 -6 -5 -5 -5 ------------- Run | Jun Mat Mat Mat Fac Low Low Dat Pro Fac DSF Fac Ext Cet Turns Passed 1394 | 20 31 99 125 126 43 114 35 108 50 51 311 228 53 Spaces Moved 3067 | 26 55 196 199 216 163 424 103 312 131 92 677 369 104 Core 1069 | 22 55 196 190 10 . . . . . 33 358 101 104 Treads 4 | 4 . . . . . . . . . . . . . Legs . | . . . . . . . . . . . . . . Wheels . | . . . . . . . . . . . . . . Hover . | . . . . . . . . . . . . . . Flight 1994 | . . . 9 206 163 424 103 312 131 59 319 268 . Fastest Speed 24 | 50 50 50 26 24 24 24 27 27 32 32 35 35 50 Average Speed 36 | 66 50 50 49 30 24 24 27 29 32 39 42 39 50 Slowest Speed 160 | 160 50 50 50 100 24 27 27 35 32 50 50 50 50 Overloaded Moves . | . . . . . . . . . . . . . . Propulsion Burnouts . | . . . . . . . . . . . . . . Robots Hopped 34 | . . . 2 2 1 1 . . . 2 17 9 . Cave-ins Triggered . | . . . . . . . . . . . . . . Exploration Rate (%) 37 | 3 21 27 24 7 34 59 75 59 5 85 25 54 49 Regions Visited 13 Branch Regions 6 Pre-discovered Areas 1 | . . . . . . . 1 . . . . . . Known Exits Taken 8 | . . . . 1 1 1 1 1 1 . 1 1 . Unknown Exits Taken 4 | 1 1 1 1 . . . . . . . . . . Scrap Searched 3 | . . . . . 1 1 . 1 . . . . . Spaces Dug 1 | . . . . . . 1 . . . . . . . Terrain Destroyed 1 | . . . . . . 1 . . . . . . . Melee 1 | . . . . . . 1 . . . . . . . Projectile . | . . . . . . . . . . . . . . AOE . | . . . . . . . . . . . . . . Terrain Rammed . | . . . . . . . . . . . . . . Walls Destroyed . | . . . . . . . . . . . . . . Machines Disabled . | . . . . . . . . . . . . . . Actions | -11 -10 -9 -8 -7 -7 -7 -7 -6 -6 -6 -5 -5 -5 --------- Run | Jun Mat Mat Mat Fac Low Low Dat Pro Fac DSF Fac Ext Cet Total 3244 | 27 57 196 221 256 165 426 109 318 136 107 678 443 105 Wait 74 | . . . 2 18 . . . . . . 9 45 . Move 2990 | 25 54 195 195 211 160 421 102 311 130 87 644 351 104 Hop 30 | . . . 1 2 1 1 . . . 2 15 8 . Pick Up 17 | . . 1 5 2 1 . . . . 5 2 1 . Fast Attach 32 | 2 . . 9 8 1 . 2 . 1 6 3 . . Attach 14 | . . . 1 4 . . 1 1 1 . 5 1 . Detach 4 | . . . . 2 . . 1 . 1 . . . . Swap 1 | . . . . . . . . . 1 . . . . Drop 18 | . . . 5 1 2 . 2 . 1 7 . . . Fire . | . . . . . . . . . . . . . . Melee 31 | . . . . 8 . 4 1 6 1 . . 11 . Ram 7 | . 3 . 3 . . . . . . . . . 1 Kick . | . . . . . . . . . . . . . . Crush . | . . . . . . . . . . . . . . Escape Stasis 16 | . . . . . . . . . . . . 16 . Rewire 10 | . . . . . . . . . . . . 10 . Trap . | . . . . . . . . . . . . . . Miscellaneous . | . . . . . . . . . . . . . . Route ------- -11/Junkyard -10/Materials -9/Materials (discovered 2 exits: *Mat / *Min) -8/Materials -7/Factory -7/Lower Caves -7/Lower Caves (discovered 2 exits: *Fac / *Dat) -7/Data Miner -6/Proximity Caves -6/Factory -6/DSF -5/Factory (discovered 8 exits: Fac x4 / *Upp x2 / *Ext x2) -5/Extension (discovered 2 exits: *Fac / *Cet) -5/Cetus History --------- Turn | Location | Event 14 | -11/Junkyard | Discovered new exit (range 15) 21 | -11/Junkyard | Entered Materials 44 | -10/Materials | Discovered new exit (range 15) 52 | -10/Materials | Entered another Materials area 52 | -9/Materials | Evolved 2 slots: Propulsion x1, Utility x1 80 | -9/Materials | Discovered new exit (range 16) 91 | -9/Materials | Identified exit to Mines 144 | -9/Materials | Discovered new exit (range 15) 151 | -9/Materials | Entered another Materials area 151 | -8/Materials | Evolved 2 slots: Propulsion x2 251 | -8/Materials | Discovered new exit (range 15) 276 | -8/Materials | Entered Factory 276 | -7/Factory | Evolved 2 slots: Propulsion x1, Utility x1 304 | -7/Factory | Lost 4 parts (3n1u) 326 | -7/Factory | Build established: Mutant 380 | -7/Factory | Discovered new exit (range 7) 402 | -7/Factory | Identified exit to Lower Caves 402 | -7/Factory | Entered Lower Caves 443 | -7/Lower Caves | Discovered new exit (range 10) 445 | -7/Lower Caves | Identified exit to Lower Caves 445 | -7/Lower Caves | Entered another Lower Caves area 457 | -7/Lower Caves | Attracted the attention of an 0b10 checkpoint 458 | -7/Lower Caves | Discovered new exit (range 7) 460 | -7/Lower Caves | Identified exit to Factory 556 | -7/Lower Caves | Discovered new exit (range 11) 559 | -7/Lower Caves | Identified exit to Data Miner 559 | -7/Lower Caves | Entered Data Miner 559 | -7/Data Miner | Discovered new exit (range 6) 565 | -7/Data Miner | Met Data Miner 575 | -7/Data Miner | Learned location of Section 7 (-3) 575 | -7/Data Miner | Acquired the access code to Warlord's prototype stash 578 | -7/Data Miner | Received God Mode back door access code from Data Miner 593 | -7/Data Miner | Identified exit to Proximity Caves 594 | -7/Data Miner | Entered Proximity Caves 598 | -6/Proximity Caves | Spotter reported a threat 598 | -6/Proximity Caves | Spotter reported a threat 644 | -6/Proximity Caves | Build established: Sprinter 668 | -6/Proximity Caves | Spotted B-75 Beast 696 | -6/Proximity Caves | Core integrity fell below 50% 700 | -6/Proximity Caves | Discovered exit to Factory (range 7) 702 | -6/Proximity Caves | Entered Factory 702 | -6/Factory | Evolved 2 slots: Propulsion x1, Utility x1 709 | -6/Factory | Lost 4 parts (1p3n) 752 | -6/Factory | Identified exit to DSF 752 | -6/Factory | Entered DSF 766 | -6/DSF | Additional patrols routed to DSF 796 | -6/DSF | Discovered new exit (range 16) 803 | -6/DSF | Identified exit to Factory 803 | -6/DSF | Entered Factory 803 | -5/Factory | Evolved 2 slots: Utility x2 826 | -5/Factory | Lost 8 parts (2n6u) 925 | -5/Factory | Identified exit to Upper Caves 925 | -5/Factory | Identified exit to Extension 925 | -5/Factory | Adv. Hacking Suite fried by hacking feedback 950 | -5/Factory | Incoming investigation squad redirected 984 | -5/Factory | Fabricated Cld. Cesium-ion Thruster (x1) 1002 | -5/Factory | Spotted B-75 Beast 1019 | -5/Factory | Build established: Hacker-Mutant 1077 | -5/Factory | Identified exit to Factory 1094 | -5/Factory | Incoming investigation squad redirected 1114 | -5/Factory | Entered Extension 1127 | -5/Extension | Rescued a captive Derelict 1128 | -5/Extension | Rescued a captive Derelict 1141 | -5/Extension | Incoming investigation squad redirected 1170 | -5/Extension | Rescued A7 1184 | -5/Extension | Identified exit to Cetus 1207 | -5/Extension | Rescued a captive Derelict 1262 | -5/Extension | Spotted B-75 Beast 1264 | -5/Extension | Core integrity fell below 50% 1265 | -5/Extension | Spotted B-75 Beast 1307 | -5/Extension | Discovered exit to Factory (range 16) 1342 | -5/Extension | Entered Cetus 1342 | -5/Cetus | Accompanied by 1 ally (A7) 1347 | -5/Cetus | Acquired a Cetus Manufacturing Module code from A7 1354 | -5/Cetus | Spotted Cetus Guard 1354 | -5/Cetus | Spotted Cetus Guard 1354 | -5/Cetus | Spotted Cetus Guard 1354 | -5/Cetus | Spotted Cetus Guard 1361 | -5/Cetus | Core integrity fell below 20% 1375 | -5/Cetus | Started Cetus Manufacturing Module 1383 | -5/Cetus | Extracted ID and sensor layout for unrecognized location from A7's data core 1395 | -5/Cetus | Incoming investigation squad redirected 1395 | -5/Cetus | Destroyed by Cetus Guard with Advanced Variable Charge Gun Last Messages --------------- >>\\TWWE Initiating process...Project G-00 loaded. 01378_ Connecting with Cetus Terminal... 01378_ ALERT: Suspicious activity at Terminal C004. Dispatching Investigation squad. 01380_ Penetrated by Slug. 01380_ Machine disabled. 01381_ Slug penetrates Machine. 01383_ Acquired data core, extracted ID and sensor data for unrecognized location. 01384_ Penetrated by Slug. 01384_ Machine disabled. 01389_ Connecting with Cetus Terminal... >>Query(Revision 17) All data regarding this post-deployment revision of the [MAIN.C] neural network was removed from the database during unauthorized system access in 2241. Nothing unique about this revision suggests why it was targeted, but confirmation is impossible without the missing data. Other [Revision Series] records seem to have remained untouched. 01395_ ALERT: Higher priority target reported, redirecting investigation. Map ----- +----------------------------------------------------+ | ?????# ????????????????????????????????????????? | | ?????# #???????????????????????????????????????? | | ?????# #???????????????????????????????????????? | | ?????# #???????????????????????????????????????? | | ?????# #???????????????????????????????????????? | | ?????# #???????????????????????????????????????? | | ?????# #???????????????????????????????????????? | | ?????# #???????????????" """ "????##???????????? | | ?????# #?????????????? """"""" " #"???????????? | | ?????# #??????????#"""""""""""""""#"######?????? | | ?????# #??????????#""""" """ """""#""""""#?????? | | ?????# #??????????#""""""" """""""#" ""#?????? | | ?????# #?????###??#""" " " """#T ""#?????? | | ?????# #????##"####" """ """ "#" ""#?????? | | ###### ###### ""# #?????? | | % / = +?????? | | / *% +?????? | | " ! +?????? | | ############### ### Y #?????? | | ??????????????#####?#" ""Y " """"#T #?????? | | ????????????????????######//############"""#?????? | | ????????????????????#" " ""#????????????????? | | ????????????????????###" """#????????????????? | | ????????????????????#" " ""#????????????????? | | ????????????????????###" """#????????????????? | | ????????????????????#" @ "###????????????????? | | ????????????????????#" """"#????????????????? | | ????????????????????#" T"""#????????????????? | | ????????????????????#" """"#????????????????? | | ????????????????????### "###????????????????? | | ????????????????????# """"#????????????????? | | ????????????????????#" " T"""#????????????????? | | ????????????????????#" """"#????????????????? | | ????????????????????#" " " #"###????????????????? | | ????????????????????# #"""?????????????????? | | ????????????????????#""" """#"""?????????????????? | | ????????????????????#########??#?????????????????? | | ?????????????????????????????????????????????????? | | ?????????????????????????????????????????????????? | | ?????????????????????????????????????????????????? | | ?????????????????????????????????????????????????? | | ?????????????????????????????????????????????????? | | ?????????????????????????????????????????????????? | | ?????????????????????????????????????????????????? | | ?????????????????????????????????????????????????? | | | | | | | | | | | +----------------------------------------------------+ Best States ------------- Heat Dissipation 40 Energy Generation 14 Energy Capacity 160 Matter Stores 300 Matter Capacity 300 Sight Range 16 Robot Scan Range 16 Terrain Scan Density 610 Evasion (%) 65 Recoil Reduction 1 Offensive Hacking 56 Item Schematics ----------------- Combat Drone Bay | -7/Data Miner | Free Lgt. Regenerative Plating | -7/Data Miner | Free Cld. Cesium-ion Thruster | -7/Data Miner | Free Exp. Targeting Computer | -7/Data Miner | Free Ion Burst Cannon | -7/Data Miner | Free Nuclear Pulse Array | -7/Data Miner | Free Imp. Kinecellerator | -7/Data Miner | Free Tesla Rifle | -7/Data Miner | Free Adv. Terrain Scanner | -7/Data Miner | Free Robot Schematics ------------------ M-14 Sweeper | -7/Data Miner | Free G-47 Trooper | -7/Data Miner | Free Y-54 Guardian | -7/Data Miner | Free S-27 Virus | -7/Data Miner | Free P-60 Hacker | -7/Data Miner | Free A-15 Conveyor | -7/Data Miner | Free Fabricated ------------ Cld. Cesium-ion Thruster | x1 | -5/Factory Alien Tech Used ----------------- None Achievements -------------- None Challenges ------------ None Game ------ Seed PoweredCoolingKit Manual? 0 Play Time 00:29:01 Cumulative 153.0 hours Start 2023.04.27 @ 18:41:38 End 2023.04.27 @ 19:14:54 Sessions 1 Manual Loads 0 Difficulty Rogue Special Mode None Game No. 448 Rogue 448 Adventurer 0 Explorer 0 Win Type - Total 7 Types 6/0/0/1/0/0/0/0/0 Lore% 66 Gallery% 71 Achievement% 61 Wizard Run 0 Options --------- ASCII 0 Keyboard 0 Movement Numpad Keybinds 0 Fullscreen 1 Font 16/SmallcapsGlow Map View 75x55 Tactical HUD 1 Map Filters NONE Filters NONE Steam 1 RUN: 3640690d-9c22-4ba4-8c98-cde51866577d